[Event "4th ChessMates Murmansk 2020"]
[Site "Murmansk"]
[Date "2020.03.15"]
[Round "5.14"]
[White "Timoshenko, Fedor"]
[Black "Shelezhonkova, Kseniya"]
[Result "1/2-1/2"]
[ECO "D02"]
[WhiteElo "1621"]
[BlackElo "1552"]
[Annotator "NA RC"]
[PlyCount "89"]
[EventDate "2020.03.13"]
[EventType "team-tourn"]
[EventCountry "RUS"]
[SourceTitle "playchess.com"]
[Source "ChessBase"]
[SourceQuality "1"]
[TimeControl "5400+30"]

1. d4 {[%emt 0:00:00]} d5 {[%emt 0:00:00]} 2. Bf4 {[%emt 0:00:00]} Nf6 {[%emt 0:00:00]} 3. Nf3 {[%emt 0:00:00]} c5 {[%emt 0:00:00]} 4. c3 {[%emt 0:00:00]} Nc6 {[%emt 0:00:05]} 5. e3 {[%emt 0:00:18]} Qb6 {[%emt 0:00:43]} 6. b3 {[%emt 0:01:33]} Bf5 {[%emt 0:02:20]} 7. Bd3 {[%emt 0:04:57]} Ne4 {[%emt 0:02:15]} 8. Ne5 {[%emt 0:07:10]} cxd4 {[%emt 0:04:49]} 9. f3 {[%emt 0:04:25]} Nd6 {[%emt 0:13:49]} 10. Nxc6 {[%emt 0:06:15]} Bxd3 {[%emt 0:00:58]} 11. Qxd3 {[%emt 0:04:57]} Qxc6 {[%emt 0:01:03]} 12. Bxd6 {[%emt 0:00:43]} Qxd6 {[%emt 0:00:11]} 13. cxd4 {[%emt 0:00:09]} Qb4+ {[%emt 0:01:48]} 14. Qd2 {[%emt 0:00:21]} e6 {[%emt 0:01:02]} 15. Ke2 {[%emt 0:01:38]} Qxd2+ {[%emt 0:03:56]} 16. Nxd2 {[%emt 0:00:08]} Ba3 {[%emt 0:00:22]} 17. Rab1 {[%emt 0:02:51]} a5 {[%emt 0:07:34]} 18. b4 {[%emt 0:00:11]} Bxb4 {[%emt 0:01:34]} 19. a3 {[%emt 0:00:28]} Bxd2 {[%emt 0:00:14]} 20. Kxd2 {[%emt 0:00:07]} Ra7 {[%emt 0:04:30]} 21. Rb6 {[%emt 0:01:35]} Kd7 {[%emt 0:02:11]} 22. Rhb1 {[%emt 0:00:19]} Kc7 {[%emt 0:03:21]} 23. Kd3 {[%emt 0:00:38]} Rd8 {[%emt 0:01:50]} 24. R6b5 {[%emt 0:06:00]} Rd6 {[%emt 0:00:57]} 25. e4 {[%emt 0:00:32]} dxe4+ {[%emt 0:01:35]} 26. fxe4 {[%emt 0:01:01]} b6 {[%emt 0:00:29]} 27. Rg5 {[%emt 0:02:31]} g6 {[%emt 0:00:57]} 28. h4 {[%emt 0:00:42]} Kd8 {[%emt 0:04:07]} 29. Ke3 {[%emt 0:06:42]} Rad7 {[%emt 0:08:27]} 30. Rd1 {[%emt 0:00:20]} Ke7 {[%emt 0:02:11]} 31. h5 {[%emt 0:04:36]} Rc7 {[%emt 0:05:07]} 32. Rd3 {[%emt 0:00:57]} Rc2 {[%emt 0:01:45]} 33. hxg6 {[%emt 0:00:51]} hxg6 {[%emt 0:00:07]} 34. g3 {[%emt 0:00:16]} Rb2 {[%emt 0:03:01]} 35. Rc3 {[%emt 0:02:02]} Kd7 {[%emt 0:02:21]} 36. d5 {[%emt 0:00:36]} exd5 {[%emt 0:02:13]} 37. exd5 {[%emt 0:00:10]} b5 {[%emt 0:00:24]} 38. Kd4 {[%emt 0:01:28]} b4 {[%emt 0:04:37]} 39. axb4 {[%emt 0:00:23]} axb4 {[%emt 0:00:02]} 40. Rf3 {[%emt 0:00:14]} f5 {[%emt 0:00:45]} 41. g4 {[%emt 0:00:11]} Rd2+ {[%emt 0:09:13]} 42. Kc4 {[%emt 0:00:45]} R2xd5 {[%emt 0:00:34]} 43. gxf5 {[%emt 0:00:12]} Rxf5 {[%emt 0:02:02]} 44. Rfxf5 {[%emt 0:00:35]} gxf5 {[%emt 0:00:06]} 45. Rxf5 {[%emt 0:00:15]} 1/2-1/2

[Event "4th ChessMates Murmansk 2020"]
[Site "Murmansk"]
[Date "2020.03.15"]
[Round "5.16"]
[White "Solovyev, Vladislav B."]
[Black "Shilnikov, Anton"]
[Result "0-1"]
[ECO "C05"]
[WhiteElo "1410"]
[BlackElo "1769"]
[Annotator "NA RC"]
[PlyCount "126"]
[EventDate "2020.03.13"]
[EventType "team-tourn"]
[EventCountry "RUS"]
[SourceTitle "playchess.com"]
[Source "ChessBase"]
[SourceQuality "1"]
[TimeControl "5400+30"]

1. e4 {[%emt 0:00:00]} e6 {[%emt 0:00:00]} 2. d4 {[%emt 0:00:00]} d5 {[%emt 0:00:00]} 3. Nd2 {[%emt 0:00:00]} Nf6 {[%emt 0:00:00]} 4. e5 {[%emt 0:00:00]} Nfd7 {[%emt 0:00:00]} 5. Bd3 {[%emt 0:00:00]} c5 {[%emt 0:00:00]} 6. c3 {[%emt 0:00:00]} Nc6 {[%emt 0:00:01]} 7. Ndf3 {[%emt 0:00:00]} cxd4 {[%emt 0:00:35]} 8. cxd4 {[%emt 0:00:03]} f6 {[%emt 0:00:24]} 9. Ng5 {[%emt 0:07:15]} Bb4+ {[%emt 0:03:38]} 10. Kf1 {[%emt 0:03:21]} fxg5 {[%emt 0:01:42]} 11. Qh5+ {[%emt 0:00:06]} Kf8 {[%emt 0:00:06]} 12. Bxh7 {[%emt 0:06:05]} Qe8 {[%emt 0:01:51]} 13. Qxe8+ {[%emt 0:01:33]} Kxe8 {[%emt 0:00:09]} 14. Bg6+ {[%emt 0:00:02]} Kd8 {[%emt 0:03:23]} 15. Bxg5+ {[%emt 0:01:55]} Be7 {[%emt 0:00:10]} 16. Be3 {[%emt 0:00:10]} b6 {[%emt 0:00:06]} 17. Nf3 {[%emt 0:02:35]} Ba6+ {[%emt 0:00:53]} 18. Ke1 {[%emt 0:00:04]} Nb4 {[%emt 0:01:03]} 19. Kd2 {[%emt 0:00:48]} Rc8 {[%emt 0:02:16]} 20. a3 {[%emt 0:00:06]} Nc6 {[%emt 0:00:06]} 21. b4 {[%emt 0:06:50]} Bc4 {[%emt 0:00:22]} 22. Ng5 {[%emt 0:02:33]} Bxg5 {[%emt 0:00:20]} 23. Bxg5+ {[%emt 0:00:03]} Kc7 {[%emt 0:00:10]} 24. Ke3 {[%emt 0:00:18]} Kb7 {[%emt 0:02:26]} 25. h4 {[%emt 0:00:12]} a5 {[%emt 0:00:35]} 26. Rhb1 {[%emt 0:02:13]} axb4 {[%emt 0:00:26]} 27. axb4 {[%emt 0:00:04]} Ra8 {[%emt 0:01:22]} 28. b5 {[%emt 0:00:56]} Na5 {[%emt 0:00:50]} 29. Bd3 {[%emt 0:02:03]} Bxd3 {[%emt 0:02:28]} 30. Kxd3 {[%emt 0:00:05]} Nc4 {[%emt 0:00:06]} 31. g4 {[%emt 0:00:31]} Ndxe5+ {[%emt 0:07:49]} 32. dxe5 {[%emt 0:01:24]} Nxe5+ {[%emt 0:00:04]} 33. Kd4 {[%emt 0:01:30]} Nxg4 {[%emt 0:00:09]} 34. f3 {[%emt 0:00:13]} Nh6 {[%emt 0:01:53]} 35. Ke5 {[%emt 0:03:05]} Rae8 {[%emt 0:02:28]} 36. Kd6 {[%emt 0:00:28]} Nf7+ {[%emt 0:01:08]} 37. Kd7 {[%emt 0:00:45]} Ne5+ {[%emt 0:05:51]} 38. Kd6 {[%emt 0:00:10]} Nxf3 {[%emt 0:00:22]} 39. Rc1 {[%emt 0:00:46]} Nd4 {[%emt 0:05:31]} 40. Rab1 {[%emt 0:01:10]} Rc8 {[%emt 0:04:40]} 41. Rd1 {[%emt 0:00:18]} Rc4 {[%emt 0:00:55]} 42. Ke5 {[%emt 0:00:22]} Ne2 {[%emt 0:05:27]} 43. Rd3 {[%emt 0:03:45]} Nc3 {[%emt 0:02:37]} 44. Rb3 {[%emt 0:02:17]} Na4 {[%emt 0:01:14]} 45. Rf3 {[%emt 0:00:15]} Rc7 {[%emt 0:05:18]} 46. Be3 {[%emt 0:03:43]} Rxh4 {[%emt 0:01:47]} 47. Kxe6 {[%emt 0:00:08]} d4 {[%emt 0:00:11]} 48. Bg5 {[%emt 0:02:19]} Nc5+ {[%emt 0:08:45]} 49. Kf5 {[%emt 0:02:26]} Nxb3 {[%emt 0:01:22]} 50. Bxh4 {[%emt 0:00:07]} Rf7+ {[%emt 0:00:41]} 51. Kg4 Rxf3 {[%emt 0:00:06]} 52. Kxf3 {[%emt 0:00:12]} d3 {[%emt 0:00:06]} 53. Bd8 {[%emt 0:00:57]} d2 {[%emt 0:02:14]} 54. Ke2 {[%emt 0:00:03]} Nd4+ {[%emt 0:00:24]} 55. Kxd2 {[%emt 0:00:12]} Nxb5 {[%emt 0:00:02]} 56. Ke3 {[%emt 0:00:16]} Nd6 {[%emt 0:01:03]} 57. Kf4 {[%emt 0:00:41]} b5 {[%emt 0:00:23]} 58. Ba5 {[%emt 0:00:20]} Kc6 {[%emt 0:00:19]} 59. Kg5 {[%emt 0:00:05]} Kc5 {[%emt 0:01:34]} 60. Kg6 {[%emt 0:00:44]} Ne8 {[%emt 0:00:21]} 61. Kf7 {[%emt 0:00:17]} b4 {[%emt 0:00:26]} 62. Kxe8 {[%emt 0:00:55]} b3 {[%emt 0:00:07]} 63. Bc3 {[%emt 0:00:04]} g5 {[%emt 0:00:09]} 0-1

[Event "4th ChessMates Murmansk 2020"]
[Site "Murmansk"]
[Date "2020.03.15"]
[Round "5.17"]
[White "Baranov, Ivan"]
[Black "Iarovoi, Dmitrii"]
[Result "1-0"]
[ECO "A40"]
[WhiteElo "1671"]
[BlackElo "1346"]
[Annotator "NA RC"]
[PlyCount "122"]
[EventDate "2020.03.13"]
[EventType "team-tourn"]
[EventCountry "RUS"]
[SourceTitle "playchess.com"]
[Source "ChessBase"]
[SourceQuality "1"]
[TimeControl "5400+30"]

1. d4 {[%emt 0:00:00]} g6 {[%emt 0:00:00]} 2. c4 {[%emt 0:00:00]} Bg7 {[%emt 0:00:00]} 3. Nc3 {[%emt 0:00:01]} a6 {[%emt 0:00:00]} 4. e4 {[%emt 0:00:52]} d6 {[%emt 0:00:00]} 5. Be3 {[%emt 0:00:11]} Nf6 {[%emt 0:00:06]} 6. f3 {[%emt 0:00:04]} c6 {[%emt 0:00:34]} 7. Qd2 {[%emt 0:02:37]} h5 {[%emt 0:00:15]} 8. d5 {[%emt 0:08:10]} c5 {[%emt 0:03:13]} 9. h4 {[%emt 0:06:11]} Nbd7 {[%emt 0:03:00]} 10. Nh3 {[%emt 0:05:15]} Rb8 {[%emt 0:01:13]} 11. Nf2 {[%emt 0:00:19]} Ne5 {[%emt 0:02:37]} 12. Be2 {[%emt 0:21:56]} Qc7 {[%emt 0:02:27]} 13. a3 {[%emt 0:00:24]} Bd7 {[%emt 0:01:24]} 14. O-O {[%emt 0:02:36]} b5 {[%emt 0:02:11]} 15. cxb5 {[%emt 0:04:19]} Bxb5 {[%emt 0:03:03]} 16. Nxb5 {[%emt 0:00:41]} axb5 {[%emt 0:00:01]} 17. Rfc1 {[%emt 0:03:50]} Nfd7 {[%emt 0:04:46]} 18. Rab1 {[%emt 0:01:10]} Qb7 {[%emt 0:04:55]} 19. b4 {[%emt 0:07:31]} Nc4 {[%emt 0:08:03]} 20. Bxc4 {[%emt 0:01:30]} bxc4 {[%emt 0:00:22]} 21. Rxc4 {[%emt 0:00:36]} Qa6 {[%emt 0:01:08]} 22. Rbc1 {[%emt 0:07:34]} Qxa3 {[%emt 0:34:51]} 23. bxc5 {[%emt 0:02:17]} dxc5 {[%emt 0:02:53]} 24. Bxc5 {[%emt 0:04:31]} Nxc5 {[%emt 0:00:01]} 25. Rxc5 {[%emt 0:00:03]} O-O {[%emt 0:00:12]} 26. Kh2 {[%emt 0:03:37]} Kh7 {[%emt 0:02:18]} 27. f4 {[%emt 0:00:44]} Bf6 {[%emt 0:00:45]} 28. e5 {[%emt 0:02:30]} Bxh4 {[%emt 0:00:11]} 29. R5c3 {[%emt 0:00:15]} Rb2 {[%emt 0:01:53]} 30. Rxa3 {[%emt 0:01:20]} Rxd2 {[%emt 0:00:01]} 31. Ne4 {[%emt 0:00:46]} Re2 {[%emt 0:01:14]} 32. Ra4 {[%emt 0:02:03]} Be1 {[%emt 0:01:38]} 33. Rc7 {[%emt 0:00:40]} Bh4 {[%emt 0:02:38]} 34. Kh3 {[%emt 0:00:27]} Rb8 {[%emt 0:05:53]} 35. Kxh4 {[%emt 0:02:26]} Rxg2 {[%emt 0:00:05]} 36. Ng5+ {[%emt 0:01:08]} Kg7 {[%emt 0:01:11]} 37. Rc3 {[%emt 0:01:51]} Rb1 {[%emt 0:00:32]} 38. Rg3 {[%emt 0:01:22]} Rf2 {[%emt 0:03:49]} 39. Rd4 {[%emt 0:00:40]} f6 {[%emt 0:00:35]} 40. exf6+ {[%emt 0:00:20]} exf6 {[%emt 0:00:06]} 41. Nh3 {[%emt 0:00:22]} Rc2 {[%emt 0:02:19]} 42. d6 {[%emt 0:00:08]} Rc8 {[%emt 0:00:01]} 43. d7 {[%emt 0:01:27]} Rd8 {[%emt 0:00:01]} 44. f5 {[%emt 0:00:16]} g5+ {[%emt 0:00:10]} 45. Nxg5 {[%emt 0:00:02]} fxg5+ {[%emt 0:00:14]} 46. Kxg5 {[%emt 0:00:04]} Rb5 {[%emt 0:01:24]} 47. Kxh5+ {[%emt 0:00:37]} Kf7 {[%emt 0:00:14]} 48. Kg5 {[%emt 0:00:38]} Re5 {[%emt 0:00:39]} 49. Rd6 {[%emt 0:01:18]} Ke7 {[%emt 0:00:15]} 50. Rgd3 {[%emt 0:00:49]} Re1 {[%emt 0:00:42]} 51. f6+ {[%emt 0:02:04]} Kf7 {[%emt 0:00:01]} 52. Kf5 {[%emt 0:00:02]} Rf1+ {[%emt 0:00:15]} 53. Ke5 {[%emt 0:00:02]} Re1+ {[%emt 0:00:19]} 54. Kd5 {[%emt 0:00:21]} Rc1 {[%emt 0:01:37]} 55. Rd4 {[%emt 0:00:48]} Rc7 {[%emt 0:00:11]} 56. Rh4 {[%emt 0:01:50]} Rdxd7 {[%emt 0:01:18]} 57. Rh7+ {[%emt 0:00:16]} Ke8 {[%emt 0:00:00]} 58. Rhxd7 {[%emt 0:00:15]} Rxd7 {[%emt 0:00:04]} 59. Rxd7 {[%emt 0:00:15]} Kxd7 {[%emt 0:00:10]} 60. Ke5 {[%emt 0:00:01]} Kd8 {[%emt 0:00:31]} 61. Kf5 {[%emt 0:00:18]} Kd7 {[%emt 0:00:23]} 1-0

[Event "4th ChessMates Murmansk 2020"]
[Site "Murmansk"]
[Date "2020.03.15"]
[Round "5.18"]
[White "Pereverzev, Valerii"]
[Black "Chervyakova, Tatiana"]
[Result "1-0"]
[ECO "D20"]
[WhiteElo "1379"]
[BlackElo "1489"]
[Annotator "NA RC"]
[PlyCount "84"]
[EventDate "2020.03.13"]
[EventType "team-tourn"]
[EventCountry "RUS"]
[SourceTitle "playchess.com"]
[Source "ChessBase"]
[SourceQuality "1"]
[TimeControl "5400+30"]

1. d4 {[%emt 0:56:01]} d5 {[%emt 0:00:00]} 2. c4 {[%emt 0:00:12]} dxc4 {[%emt 0:00:00]} 3. e4 {[%emt 0:00:09]} Nf6 {[%emt 0:00:00]} 4. Nc3 {[%emt 0:00:11]} c6 {[%emt 0:00:26]} 5. Nf3 {[%emt 0:07:03]} Bg4 {[%emt 0:01:32]} 6. Be2 {[%emt 0:00:09]} e6 {[%emt 0:00:30]} 7. Bg5 {[%emt 0:04:56]} h6 {[%emt 0:01:13]} 8. Bxf6 {[%emt 0:01:23]} Qxf6 {[%emt 0:00:07]} 9. a4 {[%emt 0:03:16]} Bb4 {[%emt 0:02:06]} 10. O-O {[%emt 0:00:18]} O-O {[%emt 0:00:16]} 11. Ne5 {[%emt 0:01:34]} Bxe2 {[%emt 0:02:03]} 12. Qxe2 {[%emt 0:00:12]} Rd8 {[%emt 0:05:43]} 13. Qxc4 {[%emt 0:00:50]} Ba5 {[%emt 0:03:33]} 14. Nf3 {[%emt 0:00:35]} Nd7 {[%emt 0:01:42]} 15. b4 {[%emt 0:00:42]} Bc7 {[%emt 0:00:47]} 16. a5 {[%emt 0:00:53]} Rac8 {[%emt 0:01:58]} 17. Qb3 {[%emt 0:00:33]} g5 {[%emt 0:02:35]} 18. Rfd1 {[%emt 0:02:48]} Nf8 {[%emt 0:01:48]} 19. Ne2 {[%emt 0:04:21]} a6 {[%emt 0:02:02]} 20. Rac1 {[%emt 0:00:42]} Ng6 {[%emt 0:01:36]} 21. Rc3 {[%emt 0:02:52]} Nf4 {[%emt 0:01:50]} 22. Ng3 {[%emt 0:03:52]} h5 {[%emt 0:02:20]} 23. e5 {[%emt 0:00:12]} Qe7 {[%emt 0:02:11]} 24. Re3 {[%emt 0:00:25]} g4 {[%emt 0:02:20]} 25. Ne4 {[%emt 0:01:25]} Nd5 {[%emt 0:02:42]} 26. Ne1 {[%emt 0:00:33]} Kg7 {[%emt 0:02:37]} 27. Nc2 {[%emt 0:00:29]} Rh8 {[%emt 0:02:09]} 28. Nc5 {[%emt 0:00:35]} Bd8 {[%emt 0:05:20]} 29. Re4 {[%emt 0:02:15]} Rh6 {[%emt 0:04:37]} 30. Ne3 {[%emt 0:00:17]} Rg6 {[%emt 0:01:02]} 31. Nxd5 {[%emt 0:00:25]} cxd5 {[%emt 0:02:31]} 32. Re3 {[%emt 0:00:13]} Ra8 {[%emt 0:08:28]} 33. Ra1 {[%emt 0:00:49]} Rc8 {[%emt 0:02:54]} 34. Rc3 {[%emt 0:00:36]} h4 {[%emt 0:03:38]} 35. Kh1 {[%emt 0:02:25]} Rb8 {[%emt 0:06:45]} 36. b5 {[%emt 0:00:21]} Ra8 {[%emt 0:06:09]} 37. b6 {[%emt 0:00:09]} Rb8 {[%emt 0:03:32]} 38. Qa4 {[%emt 0:00:21]} h3 {[%emt 0:03:10]} 39. gxh3 {[%emt 0:01:28]} gxh3 {[%emt 0:00:29]} 40. Rxh3 {[%emt 0:00:35]} Qg5 {[%emt 0:00:25]} 41. Rg3 {[%emt 0:00:15]} Qf4 {[%emt 0:00:21]} 42. Rxg6+ {[%emt 0:00:24]} fxg6 {[%emt 0:00:47]} 1-0

[Event "4th ChessMates Murmansk 2020"]
[Site "Murmansk"]
[Date "2020.03.15"]
[Round "5.20"]
[White "Bueckert, Lucy"]
[Black "Simakov, Vadim"]
[Result "0-1"]
[ECO "A02"]
[WhiteElo "1302"]
[BlackElo "1605"]
[Annotator "NA RC"]
[PlyCount "104"]
[EventDate "2020.03.13"]
[EventType "team-tourn"]
[EventCountry "RUS"]
[SourceTitle "playchess.com"]
[Source "ChessBase"]
[SourceQuality "1"]
[TimeControl "5400+30"]

1. f4 {[%emt 0:00:00]} Nf6 {[%emt 0:00:00]} 2. b3 {[%emt 0:00:00]} g6 {[%emt 0:00:00]} 3. Nf3 {[%emt 0:00:00]} Bg7 {[%emt 0:00:00]} 4. Bb2 {[%emt 0:00:00]} d6 {[%emt 0:00:00]} 5. e3 {[%emt 0:00:06]} h5 {[%emt 0:00:06]} 6. Be2 {[%emt 0:01:02]} Nbd7 {[%emt 0:00:14]} 7. O-O O-O {[%emt 0:00:05]} 8. d3 {[%emt 0:00:28]} c5 {[%emt 0:00:09]} 9. Qe1 {[%emt 0:01:27]} b5 {[%emt 0:00:27]} 10. Nbd2 {[%emt 0:00:51]} Nb6 {[%emt 0:00:29]} 11. Qh4 {[%emt 0:01:57]} a5 {[%emt 0:02:42]} 12. Ng5 {[%emt 0:01:41]} Ng4 {[%emt 0:01:09]} 13. Bxg7 {[%emt 0:01:40]} Kxg7 {[%emt 0:00:08]} 14. Rf3 {[%emt 0:03:22]} d5 {[%emt 0:02:28]} 15. Rg3 {[%emt 0:01:59]} Rh8 {[%emt 0:02:21]} 16. Bxg4 {[%emt 0:01:56]} Bxg4 {[%emt 0:00:52]} 17. h3 {[%emt 0:04:42]} Bd7 {[%emt 0:00:44]} 18. e4 {[%emt 0:02:04]} dxe4 {[%emt 0:00:53]} 19. Ndxe4 {[%emt 0:00:42]} Bf5 {[%emt 0:00:38]} 20. Nxc5 {[%emt 0:04:48]} Qd4+ {[%emt 0:00:15]} 21. Kh2 {[%emt 0:01:11]} Qxa1 {[%emt 0:02:23]} 22. Nf3 {[%emt 0:01:50]} Qf6 {[%emt 0:00:31]} 23. d4 {[%emt 0:00:48]} Qxh4 {[%emt 0:00:15]} 24. Nxh4 {[%emt 0:00:11]} Bxc2 {[%emt 0:00:31]} 25. f5 {[%emt 0:00:41]} a4 {[%emt 0:00:48]} 26. fxg6 {[%emt 0:00:58]} fxg6 {[%emt 0:00:09]} 27. Ne6+ {[%emt 0:00:19]} Kf6 {[%emt 0:00:13]} 28. Nf4 {[%emt 0:00:36]} g5 {[%emt 0:00:18]} 29. Rc3 {[%emt 0:00:33]} Rac8 {[%emt 0:01:10]} 30. Rxc8 {[%emt 0:00:19]} Rxc8 {[%emt 0:00:03]} 31. Nxh5+ {[%emt 0:00:24]} Ke6 {[%emt 0:00:11]} 32. Nf3 {[%emt 0:00:15]} axb3 {[%emt 0:00:08]} 33. axb3 {[%emt 0:00:07]} Bxb3 {[%emt 0:00:05]} 34. Nxg5+ {[%emt 0:00:09]} Kd5 {[%emt 0:00:11]} 35. Nf3 {[%emt 0:00:23]} Bc4 {[%emt 0:00:16]} 36. g4 {[%emt 0:00:15]} b4 {[%emt 0:00:06]} 37. Nd2 {[%emt 0:00:30]} Kxd4 {[%emt 0:00:14]} 38. Nxc4 {[%emt 0:00:15]} Nxc4 {[%emt 0:00:04]} 39. Nf4 {[%emt 0:00:09]} b3 {[%emt 0:00:05]} 40. Ne2+ {[%emt 0:00:18]} Ke3 {[%emt 0:00:11]} 41. Nc3 {[%emt 0:00:14]} Nd2 {[%emt 0:00:09]} 42. Na4 {[%emt 0:00:31]} Ra8 {[%emt 0:00:11]} 43. Nb2 {[%emt 0:00:10]} Ra2 {[%emt 0:00:05]} 44. Nd1+ {[%emt 0:00:18]} Kd3 {[%emt 0:00:08]} 45. Nf2+ {[%emt 0:00:09]} Kc2 {[%emt 0:00:06]} 46. g5 {[%emt 0:00:21]} b2 {[%emt 0:00:10]} 47. g6 {[%emt 0:00:16]} b1=Q {[%emt 0:00:07]} 48. g7 {[%emt 0:01:51]} Ra8 {[%emt 0:00:23]} 49. Ng4 {[%emt 0:00:18]} Qe1 {[%emt 0:00:17]} 50. Nh6 {[%emt 0:00:10]} Qf2+ {[%emt 0:00:09]} 51. Kh1 {[%emt 0:00:08]} Nf3 {[%emt 0:00:09]} 52. h4 {[%emt 0:00:22]} Qg1# {[%emt 0:00:06]} 0-1

[Event "4th ChessMates Murmansk 2020"]
[Site "Murmansk"]
[Date "2020.03.15"]
[Round "5.26"]
[White "Kien, Clovis"]
[Black "Kataev, Aleksandr"]
[Result "0-1"]
[ECO "E91"]
[WhiteElo "1765"]
[BlackElo "1978"]
[Annotator "RC"]
[PlyCount "120"]
[EventDate "2020.03.13"]
[EventType "team-tourn"]
[EventCountry "RUS"]
[SourceTitle "playchess.com"]
[Source "ChessBase"]
[SourceQuality "1"]
[TimeControl "5400+30"]

1. d4 {[%emt 0:00:09]} Nf6 {[%emt 0:00:00]} 2. c4 {[%emt 0:00:19]} g6 {[%emt 0:00:00]} 3. Nc3 {[%emt 0:00:05]} Bg7 {[%emt 0:00:00]} 4. e4 {[%emt 0:00:03]} d6 {[%emt 0:00:00]} 5. Nf3 {[%emt 0:00:04]} O-O {[%emt 0:00:00]} 6. Be2 {[%emt 0:00:05]} Na6 {[%emt 0:00:01]} 7. O-O {[%emt 0:03:19]} e5 {[%emt 0:00:13]} 8. Re1 {[%emt 0:04:10]} exd4 {[%emt 0:06:59]} 9. Nxd4 {[%emt 0:01:07]} Nc5 {[%emt 0:00:19]} 10. Bf3 {[%emt 0:03:54]} a5 {[%emt 0:00:20]} 11. Bg5 {[%emt 0:11:15]} h6 {[%emt 0:00:38]} 12. Be3 {[%emt 0:00:32]} Re8 {[%emt 0:01:20]} 13. Qc2 {[%emt 0:03:27]} Bg4 {[%emt 0:02:09]} 14. Bf4 {[%emt 0:06:49]} Bxf3 {[%emt 0:11:25]} 15. Nxf3 {[%emt 0:01:57]} Ng4 {[%emt 0:03:33]} 16. h3 {[%emt 0:07:49]} Ne5 {[%emt 0:00:11]} 17. Nxe5 {[%emt 0:00:12]} dxe5 {[%emt 0:00:06]} 18. Rad1 {[%emt 0:01:10]} Qh4 {[%emt 0:08:49]} 19. Bg3 {[%emt 0:07:38]} Qf6 {[%emt 0:04:54]} 20. Nd5 Qc6 {[%emt 0:00:13]} 21. Bh4 {[%emt 0:06:42]} g5 {[%emt 0:02:12]} 22. Bg3 {[%emt 0:00:02]} Ne6 {[%emt 0:00:11]} 23. Qc3 {[%emt 0:01:57]} Nd4 {[%emt 0:01:31]} 24. b3 {[%emt 0:01:08]} b6 {[%emt 0:05:00]} 25. Qb2 {[%emt 0:09:22]} Ra7 {[%emt 0:04:11]} 26. Ne3 {[%emt 0:05:56]} Qe6 {[%emt 0:04:07]} 27. Ng4 {[%emt 0:04:03]} f6 {[%emt 0:01:26]} 28. Ne3 {[%emt 0:00:24]} a4 {[%emt 0:01:52]} 29. Nc2 {[%emt 0:03:00]} c5 {[%emt 0:02:24]} 30. Nxd4 {[%emt 0:05:07]} cxd4 {[%emt 0:00:40]} 31. Rd3 {[%emt 0:00:49]} Bf8 {[%emt 0:00:22]} 32. Rc1 {[%emt 0:00:36]} axb3 {[%emt 0:00:48]} 33. Rxb3 {[%emt 0:02:21]} Bc5 {[%emt 0:00:09]} 34. f3 {[%emt 0:02:02]} Rea8 {[%emt 0:00:16]} 35. Rd3 {[%emt 0:04:40]} Rxa2 {[%emt 0:00:16]} 36. Qb5 {[%emt 0:00:35]} R8a5 {[%emt 0:00:16]} 37. Qb3 {[%emt 0:00:38]} Qc6 {[%emt 0:00:29]} 38. Be1 {[%emt 0:01:04]} R5a3 {[%emt 0:00:19]} 39. Qd1 {[%emt 0:00:32]} Qa4 {[%emt 0:01:09]} 40. Rxa3 {[%emt 0:00:56]} Qxd1 {[%emt 0:00:20]} 41. Ra8+ {[%emt 0:00:30]} Rxa8 {[%emt 0:00:08]} 42. Rxd1 {[%emt 0:00:02]} Ra2 {[%emt 0:00:11]} 43. Rd2 {[%emt 0:02:20]} Ra1 {[%emt 0:00:48]} 44. Kf1 {[%emt 0:00:29]} Bb4 {[%emt 0:00:14]} 45. Ke2 {[%emt 0:00:22]} Rxe1+ {[%emt 0:01:31]} 46. Kxe1 {[%emt 0:00:27]} Kf7 {[%emt 0:00:04]} 47. Kd1 {[%emt 0:00:14]} Bxd2 {[%emt 0:00:05]} 48. Kxd2 {[%emt 0:00:01]} Ke6 {[%emt 0:00:08]} 49. g4 {[%emt 0:00:03]} Kd6 {[%emt 0:00:05]} 50. Kc2 {[%emt 0:00:31]} Kc5 {[%emt 0:00:08]} 51. Kd3 {[%emt 0:00:13]} Kb4 {[%emt 0:00:06]} 52. h4 {[%emt 0:00:09]} gxh4 {[%emt 0:00:31]} 53. f4 {[%emt 0:00:06]} h3 {[%emt 0:00:11]} 54. g5 {[%emt 0:00:35]} hxg5 {[%emt 0:00:08]} 55. c5 {[%emt 0:00:15]} bxc5 {[%emt 0:00:05]} 56. Ke2 {[%emt 0:00:04]} h2 {[%emt 0:00:08]} 57. Kf3 {[%emt 0:00:03]} h1=Q+ {[%emt 0:00:14]} 58. Kg4 {[%emt 0:00:06]} Qxe4 {[%emt 0:00:19]} 59. Kh5 {[%emt 0:00:03]} Qh7+ {[%emt 0:00:14]} 60. Kg4 {[%emt 0:00:04]} exf4 {[%emt 0:00:12]} 0-1

[Event "4th ChessMates Murmansk 2020"]
[Site "Murmansk"]
[Date "2020.03.15"]
[Round "5.28"]
[White "Fougerat, Emma"]
[Black "Khmil, Fedor"]
[Result "1/2-1/2"]
[ECO "A20"]
[WhiteElo "1668"]
[BlackElo "1470"]
[Annotator "NA RC"]
[PlyCount "58"]
[EventDate "2020.03.13"]
[EventType "team-tourn"]
[EventCountry "RUS"]
[SourceTitle "playchess.com"]
[Source "ChessBase"]
[SourceQuality "1"]
[TimeControl "5400+30"]

1. c4 {[%emt 0:00:00]} e5 {[%emt 0:00:00]} 2. g3 {[%emt 0:00:00]} Nf6 {[%emt 0:00:00]} 3. Bg2 {[%emt 0:00:00]} Nc6 {[%emt 0:00:00]} 4. Nc3 {[%emt 0:00:09]} Bb4 {[%emt 0:00:47]} 5. Nf3 {[%emt 0:01:53]} O-O {[%emt 0:00:56]} 6. O-O {[%emt 0:00:15]} d6 {[%emt 0:05:18]} 7. Rb1 {[%emt 0:04:12]} Be6 {[%emt 0:01:24]} 8. d3 {[%emt 0:00:52]} h6 {[%emt 0:00:28]} 9. Bd2 {[%emt 0:01:34]} Re8 {[%emt 0:02:52]} 10. a3 {[%emt 0:00:57]} Bc5 {[%emt 0:01:42]} 11. b4 {[%emt 0:01:06]} Bb6 {[%emt 0:00:40]} 12. b5 {[%emt 0:02:03]} Ne7 {[%emt 0:00:51]} 13. Na4 {[%emt 0:01:37]} Qd7 {[%emt 0:03:28]} 14. Ra1 {[%emt 0:12:15]} Bh3 {[%emt 0:02:04]} 15. Nxb6 {[%emt 0:00:22]} axb6 {[%emt 0:00:17]} 16. a4 {[%emt 0:00:21]} Bxg2 {[%emt 0:00:07]} 17. Kxg2 {[%emt 0:00:02]} e4 {[%emt 0:07:54]} 18. Nd4 {[%emt 0:03:36]} d5 {[%emt 0:02:28]} 19. Nc2 {[%emt 0:03:37]} exd3 {[%emt 0:03:01]} 20. exd3 {[%emt 0:00:14]} Qf5 {[%emt 0:05:27]} 21. Bc3 {[%emt 0:12:16]} dxc4 {[%emt 0:11:10]} 22. dxc4 {[%emt 0:00:33]} Rad8 {[%emt 0:00:50]} 23. Qc1 {[%emt 0:02:37]} Rd3 {[%emt 0:05:05]} 24. Ne3 {[%emt 0:03:12]} Qe4+ {[%emt 0:02:22]} 25. Kg1 {[%emt 0:03:11]} Ng4 {[%emt 0:06:19]} 26. Nxg4 {[%emt 0:06:58]} Qxg4 {[%emt 0:00:16]} 27. Be5 {[%emt 0:09:11]} c6 {[%emt 0:12:04]} 28. Qf4 {[%emt 0:06:38]} Qh3 {[%emt 0:07:52]} 29. Qe4 {[%emt 0:06:42]} Rd7 {[%emt 0:05:11]} 1/2-1/2